bitfinex/quotes_ETHUSD_20241204
["timestamp","ask_amount","ask_price","bid_price","bid_amount"]
[1733321635678,0.25155607,3704.8,3704.2,5.89956863]
[1733321635879,0.25151451,3704.9,3704.2,5.89956863]
[1733321636179,0.25151451,3704.8,3704.2,3.19997863]
[1733321636512,0.25155607,3705.0,3704.5,2.69937]
[1733321636513,0.50307058,3705.0,3704.5,2.69937]
[1733321636809,2.69884,3705.3,3704.2,3.19997863]
[1733321636968,0.25151451,3705.2,3704.2,3.19997863]
[1733321637169,2.95047607,3705.2,3703.9,2.69984]
[1733321637509,0.25151451,3705.1,3704.0,2.69976]
[1733321637809,0.25155607,3705.0,3704.1,0.7506]
[1733321637993,0.791,3704.9,3703.8,3.19997863]
[1733321638198,0.791,3704.9,3703.8,0.7506]
[1733321638509,2.69928,3704.7,3703.8,0.7506]
[1733321638677,0.25151451,3704.6,3703.8,0.7506]
[1733321639085,0.50307058,3704.6,3703.9,2.69978]
[1733321639264,0.25155607,3704.6,3704.2,3.19997863]
[1733321639465,0.25155607,3704.6,3704.3,2.72653346]
[1733321639703,0.50265848,3705.3,3704.3,2.72653198]
[1733321639867,0.50265848,3705.3,3704.5,0.8053]
[1733321640071,0.50265848,3705.3,3704.5,3.5047]
[1733321640268,1.55743992,3705.6,3704.5,0.8053]
[1733321640483,2.69876,3705.5,3704.5,0.8053]
[1733321640726,0.25110241,3705.4,3704.5,0.8053]
[1733321640935,0.50265848,3705.4,3704.5,0.8053]
[1733321641237,2.95036607,3705.4,3704.5,0.8053]
[1733321641442,1.30588385,3705.6,3704.5,0.8053]
[1733321641735,4.00451385,3705.6,3704.5,0.8053]
[1733321641932,0.25093012,3705.5,3704.5,0.8053]
[1733321642089,2.69877,3705.4,3704.5,0.8053]
[1733321642426,0.25093012,3705.5,3704.5,0.8053]
[1733321642726,0.50163186,3705.5,3704.5,0.8053]
[1733321643035,1.30588385,3705.6,3704.1,2.69971]
[1733321643326,2.69869,3705.5,3703.9,3.7812]
[1733321643632,0.50112126,3705.4,3703.9,3.7812]
[1733321643799,2.69883,3705.3,3703.9,0.7812]
[1733321644000,2.69906,3705.0,3703.9,0.7812]
[1733321644494,2.69905,3705.0,3703.9,0.7812]
[1733321644688,8.84,3705.3,3703.9,0.7812]
[1733321644894,2.69905,3705.0,3703.9,0.7812]
[1733321645142,2.69945,3704.5,3703.6,0.777]
[1733321645348,2.69912,3704.9,3703.6,0.777]
[1733321645349,2.6995,3704.4,3703.6,0.777]
[1733321645637,2.69958,3704.3,3703.6,0.777]
[1733321645820,2.69939,3704.6,3703.6,0.777]
[1733321646133,2.6995,3704.4,3703.6,0.777]
[1733321646330,3.0,3704.9,3703.6,0.777]
[1733321646487,5.69913,3704.9,3703.7,2.72698659]
[1733321646688,9.36978593,3705.0,3703.6,0.777]
[1733321646689,8.84,3705.0,3703.8,3.22697409]
[1733321646923,8.84,3705.0,3703.9,0.02699457]
[1733321647239,8.84,3705.0,3704.2,2.69962]
[1733321648288,0.53405361,3705.3,3704.3,0.02699336]
[1733321648438,9.6724,3705.5,3704.2,3.19997863]
[1733321648751,9.6724,3705.5,3704.4,2.69942]
[1733321648955,0.8324,3705.5,3704.2,3.19997863]
[1733321649276,0.27901093,3705.7,3704.6,3.19997863]
[1733321649482,0.27901093,3705.7,3704.8,0.7961]
[1733321649636,0.27901093,3705.7,3704.9,2.69911]
[1733321650280,0.27901093,3705.7,3704.8,0.7961]
[1733321650438,9.5905,3706.4,3705.2,2.6989]
[1733321650633,0.5005052,3706.2,3705.2,2.6989]
[1733321650881,0.25025684,3706.2,3705.2,2.6989]
[1733321651247,2.69819,3706.2,3704.9,2.69906]
[1733321651576,4.36902493,3706.1,3705.0,2.69899]
[1733321652106,0.8315,3705.1,3704.0,0.7819]
[1733321652454,0.8315,3705.1,3703.7,0.7819]
[1733321652758,2.69941,3704.6,3703.4,2.70016]
[1733321652953,2.69968,3704.2,3703.3,0.7819]
[1733321653157,2.69972,3704.1,3703.3,0.7819]
[1733321653358,0.8315,3704.2,3702.9,0.7819]
[1733321653599,2.70002,3703.7,3702.9,0.7819]
[1733321653856,6.53118,3704.2,3702.5,2.70086]
[1733321653857,8.84,3704.1,3702.5,2.70083]
[1733321654100,2.69999,3703.8,3702.5,2.70083]
[1733321654257,3.0,3703.9,3702.4,0.7819]
[1733321654458,2.70003,3703.7,3702.4,0.7819]
[1733321654796,2.70016,3703.5,3702.4,0.7819]
[1733321655361,5.69983,3704.0,3702.4,0.7819]
[1733321655362,2.70022,3703.4,3702.4,0.7819]
[1733321655697,0.55301779,3703.8,3702.4,0.7819]
[1733321656000,2.7003,3703.3,3702.4,0.7819]
[1733321656368,2.70038,3703.2,3702.4,0.7819]
[1733321656702,0.8251,3703.3,3701.9,3.48581]
[1733321656868,2.70044,3703.1,3701.9,3.48581]
[1733321657212,2.70044,3703.1,3702.0,0.348581]
[1733321657374,0.8251,3703.3,3702.0,0.348581]
[1733321657560,2.70037,3703.2,3701.9,3.4858]
[1733321657894,2.70045,3703.1,3701.9,3.4858]
[1733321658102,5.70009,3703.6,3702.3,2.70101]
[1733321658276,0.801,3703.7,3702.1,2.70116]
[1733321658473,2.70044,3703.1,3701.9,3.48579]
[1733321658670,2.70044,3703.1,3702.0,0.348579]
[1733321658671,2.70049,3703.1,3702.0,0.348579]
[1733321659210,2.70049,3703.1,3701.9,3.4858]
[1733321659419,2.70029,3703.3,3701.9,0.7845]
[1733321659569,0.50298034,3703.2,3701.9,0.7845]
[1733321659774,2.70054,3703.0,3701.9,0.7845]
[1733321660690,2.70056,3703.0,3701.9,0.7845]
[1733321662232,0.8042,3702.9,3701.9,0.7845]
[1733321662953,10.21006264,3703.3,3701.9,0.7845]
[1733321663129,3.0,3703.8,3702.7,2.70071]
[1733321663271,0.8325,3703.9,3702.2,3.25109]
[1733321663272,3.8325,3703.9,3702.8,0.8006]
[1733321663476,0.5347527,3703.6,3702.8,0.8006]
[1733321664178,0.8266,3704.3,3702.8,0.8006]
[1733321664429,2.69941,3704.6,3703.5,0.8291]
[1733321664720,0.50321216,3704.5,3702.8,0.8291]
[1733321664889,5.89377305,3704.3,3702.8,0.8291]
[1733321665071,0.7552,3704.0,3701.7,1.3078]
[1733321665279,2.7,3703.7,3702.1,2.70116]
[1733321665477,2.70023,3703.4,3702.1,2.70112]
[1733321665703,2.7003,3703.3,3702.1,2.70112]
[1733321665902,2.70015,3703.5,3701.8,0.55091548]
[1733321666113,2.70024,3703.4,3702.0,2.70124]
[1733321666380,2.7003,3703.3,3702.0,2.70124]
[1733321666899,2.70036,3703.2,3702.0,2.70124]
[1733321667101,2.70051,3703.0,3701.9,0.772]
[1733321667303,0.54156327,3702.9,3701.9,0.772]
[1733321667510,2.83663633,3702.8,3701.9,0.772]
[1733321668278,0.13595633,3702.8,3701.9,0.772]
[1733321668714,2.70074,3702.7,3701.9,0.772]
[1733321668921,0.13595633,3702.8,3701.9,0.772]
[1733321669134,0.13595633,3702.8,3702.0,0.02700934]
[1733321669424,0.13595633,3702.8,3701.9,0.772]
[1733321670322,12.35846,3703.1,3702.0,2.70122]
[1733321670862,8.84,3703.1,3702.1,2.70116]
[1733321671034,8.84,3703.1,3701.9,3.4733]
[1733321671359,8.84,3703.1,3701.9,0.772]
[1733321671567,2.70065,3702.9,3701.9,0.772]
[1733321671927,2.7004,3703.2,3702.0,2.70123]
[1733321672131,11.84,3703.4,3702.1,2.70113]
[1733321672362,1.05622352,3703.3,3702.3,2.70101]
[1733321672519,11.84,3703.4,3702.5,0.7937]
[1733321673032,8.84,3703.4,3702.5,0.7937]
[1733321673658,8.84,3703.4,3702.6,2.70079]
[1733321673827,8.84,3703.4,3702.5,0.7937]
[1733321674753,0.53933326,3703.4,3702.5,0.7937]
[1733321674952,2.70025,3703.4,3702.5,0.7937]
[1733321676669,0.81084909,3703.6,3702.5,0.7937]
[1733321676914,0.8253,3703.1,3701.7,2.70141]
[1733321677175,0.8253,3703.1,3701.4,0.7512]
[1733321677402,2.70052,3703.0,3701.7,2.70139]
[1733321677871,2.70059,3702.9,3701.8,2.70135]
[1733321678374,0.8253,3703.1,3701.5,0.02700937]
[1733321678545,0.8253,3703.1,3701.4,0.7512]
[1733321678546,0.8253,3703.1,3701.7,2.70146]
[1733321678729,3.0,3703.2,3702.4,0.7981]
[1733321678930,8.84,3703.3,3702.5,2.70086]
[1733321679246,8.84,3703.3,3702.6,2.70078]
[1733321679481,8.84,3703.3,3702.4,0.7981]
[1733321679700,0.27882727,3703.6,3702.8,2.70059]
[1733321680661,0.27882727,3703.6,3702.6,2.70078]
[1733321680865,0.27882727,3703.6,3702.4,0.7981]
[1733321681070,0.54708994,3703.7,3702.6,0.7903]
[1733321681292,0.25154016,3703.6,3702.7,0.02700293]
[1733321681519,0.50308262,3703.6,3702.6,0.81730293]
[1733321681668,0.50308262,3703.6,3702.9,2.70056]
[1733321682247,0.50308262,3703.5,3702.9,2.70056]
[1733321682483,0.25154016,3703.4,3702.9,2.70056]
[1733321682784,0.50308262,3703.4,3702.9,2.70056]
[1733321683088,0.50308262,3703.6,3702.9,2.70056]
[1733321683258,0.25154016,3703.5,3702.9,2.70056]
[1733321683475,0.50308262,3703.4,3702.9,2.70056]
[1733321683777,0.50308262,3703.3,3702.7,2.7007]
[1733321683986,0.25154016,3703.2,3702.7,2.7007]
[1733321684196,3.24618017,3703.8,3702.7,2.7007]
[1733321684352,0.25238821,3703.2,3702.8,2.70065]
[1733321684693,3.24618017,3703.8,3702.8,2.70065]
[1733321684853,0.50492723,3703.7,3702.8,2.70065]
[1733321685050,0.50492723,3703.6,3702.6,0.7903]
[1733321685251,0.50492723,3703.5,3702.8,2.70064]
[1733321685532,0.25246512,3703.4,3702.8,2.70064]
[1733321685685,0.25246512,3703.3,3702.8,2.70064]
[1733321685871,0.25246512,3703.2,3702.6,0.7903]
[1733321686067,0.50495909,3703.3,3703.0,2.7005]
[1733321686300,0.25246211,3703.3,3703.0,2.7005]
[1733321686458,0.54624017,3703.8,3703.0,2.7005]
[1733321686791,0.5050077,3703.7,3702.6,0.7903]
[1733321686995,0.5050077,3703.6,3702.9,0.8316]
[1733321687291,0.25250385,3704.1,3703.5,0.8257]
[1733321687589,0.25254133,3704.0,3703.7,2.69997]
[1733321687790,0.25254133,3704.0,3703.5,0.8257]
[1733321687791,0.25250385,3704.1,3703.5,3.52583]
[1733321687989,0.50493119,3704.0,3703.5,3.52583]
[1733321688301,0.25246583,3704.0,3703.5,3.52583]
[1733321688472,0.25246583,3704.4,3703.5,0.8257]
[1733321688813,0.25239501,3704.3,3703.6,2.70006]
[1733321688992,0.25239501,3704.2,3703.6,2.70006]
[1733321689156,0.25239501,3704.1,3703.6,2.70006]
[1733321689368,0.25231285,3704.1,3703.7,2.69998]
[1733321689665,0.50477868,3704.1,3703.7,2.69998]
[1733321689906,0.25246583,3704.1,3703.7,2.69998]
[1733321690103,0.25231285,3704.3,3703.7,2.69998]
[1733321690411,0.50456755,3704.2,3703.5,3.5258]
[1733321690566,0.2522547,3704.4,3703.9,2.6998]
[1733321690771,0.50444302,3704.4,3703.6,3.05265]
[1733321691004,0.50444302,3704.6,3704.0,2.69975]
[1733321691171,0.25218832,3704.5,3703.8,2.6999]
[1733321691381,0.2522547,3704.6,3703.5,0.8257]
[1733321691707,0.41179416,3704.5,3703.7,2.69995]
[1733321691863,0.2522547,3704.4,3703.5,0.8257]
[1733321692064,0.2522547,3704.4,3703.5,3.52583]
[1733321692262,0.2522547,3704.4,3703.5,0.8257]
[1733321692466,0.50444302,3704.4,3703.5,0.8257]
[1733321692665,0.50444302,3704.4,3703.5,3.52583]
[1733321692913,0.2522547,3704.3,3703.5,3.52583]
[1733321693408,0.2522547,3704.3,3703.5,0.8257]
[1733321693564,0.50421894,3704.4,3703.5,0.8257]
[1733321693969,0.2522547,3704.3,3703.6,2.70007]
[1733321694480,0.50421894,3704.5,3703.6,2.70007]
[1733321694691,0.50421894,3704.5,3703.5,0.8257]
[1733321694872,0.2522547,3704.4,3703.5,0.8257]
[1733321695206,0.50421894,3704.4,3703.5,0.8257]
[1733321695910,3.20372894,3704.4,3703.4,2.70019]
[1733321696209,0.2522547,3704.3,3703.2,2.70036]
[1733321696409,3.20361704,3704.5,3703.4,2.70016]
[1733321696570,1.43696056,3704.4,3703.4,2.70016]
[1733321696916,0.25194591,3704.4,3703.5,2.70014]
[1733321697116,0.50392512,3704.4,3703.2,2.70036]
[1733321697318,0.25197921,3704.4,3703.7,2.69993]
[1733321697481,2.76511956,3704.6,3704.1,2.69965]
[1733321697482,0.25197921,3704.5,3704.1,2.69965]
[1733321697679,0.25197921,3704.5,3703.7,2.7]
[1733321698024,0.25197921,3704.6,3704.3,2.69952]
[1733321698219,0.25197921,3704.6,3703.9,2.69983]
[1733321698507,1.65238548,3704.9,3703.9,2.69983]
[1733321698673,3.95184775,3704.9,3703.9,2.69983]
[1733321699013,2.55148044,3704.8,3703.9,2.69983]
[1733321699309,2.55148044,3704.8,3703.3,1.152686]
[1733321699310,0.7624,3704.6,3703.3,1.152686]
[1733321699482,1.11384995,3704.5,3703.3,0.8076]
[1733321699684,4.74697306,3704.4,3703.4,2.70021]
[1733321700010,2.33391104,3704.3,3703.4,2.70021]
[1733321700166,2.58589025,3704.3,3703.4,2.70021]
[1733321700370,0.7826,3704.1,3703.0,0.795]
[1733321700603,0.7826,3704.1,3702.7,3.49571]
[1733321700784,2.69988,3703.9,3702.9,2.70057]
[1733321700990,0.93351574,3703.8,3702.9,2.70057]
[1733321701190,0.93351574,3703.8,3702.7,0.795]
[1733321701191,0.25197921,3703.8,3702.7,0.795]
[1733321701391,0.25197921,3703.8,3703.0,2.70045]
[1733321701591,0.25197921,3703.8,3702.9,2.70051]
[1733321701793,4.60407939,3703.9,3702.7,3.4957]
[1733321702015,2.58562453,3703.8,3702.7,3.4957]
[1733321702229,1.65214431,3703.8,3702.7,3.4957]
[1733321702407,1.65214431,3703.8,3702.7,0.795]
[1733321702607,0.805,3703.3,3702.0,0.7857]
[1733321702788,0.805,3703.3,3702.2,2.70106]
[1733321702993,0.805,3703.3,3702.0,0.7857]
[1733321702994,2.70037,3703.2,3702.0,0.7857]
[1733321703192,2.70049,3703.1,3701.6,0.7857]
[1733321703673,2.70044,3703.1,3701.9,2.70124]
[1733321703875,0.805,3703.3,3701.7,0.02700881]
[1733321704077,0.25198622,3703.2,3702.2,2.70106]
[1733321704325,0.25198622,3703.2,3702.3,2.70095]
[1733321704659,1.36579645,3703.4,3702.4,0.02700684]
[1733321704806,1.36579645,3703.4,3702.9,0.7973]
[1733321705010,1.11384995,3703.4,3703.1,2.70042]
[1733321705244,1.11384995,3703.4,3703.0,2.70044]
[1733321705415,1.11384995,3703.4,3702.9,0.7973]
[1733321705732,1.11384995,3703.4,3703.3,2.70029]
[1733321705950,1.11384995,3703.4,3703.1,2.70043]
[1733321706249,1.11384995,3703.4,3702.5,0.8298]
[1733321706568,0.751,3703.3,3702.7,2.70068]
[1733321706728,0.751,3703.3,3702.8,2.70064]
[1733321707115,0.751,3703.3,3702.2,0.8223028]
[1733321707344,1.11384995,3703.4,3703.3,2.70029]
[1733321707609,1.11384995,3703.4,3703.3,3.49559]
[1733321707850,1.11384995,3703.4,3703.3,4.115194]
[1733321708249,1.11384995,3703.4,3703.3,3.49559]
[1733321708455,1.11384995,3703.4,3703.3,2.70029]
[1733321708912,0.93403881,3704.2,3703.0,0.8284]
[1733321709116,0.25229887,3704.1,3703.7,2.69993]
[1733321709434,0.25229887,3704.2,3703.3,0.02699911]
[1733321709752,0.25229887,3704.1,3703.7,2.69994]
[1733321709956,0.25229887,3704.3,3703.7,2.69994]
[1733321710114,0.25229887,3704.2,3703.5,2.70014]
[1733321710310,0.25229887,3704.1,3703.5,2.70014]
[1733321710570,0.25229887,3704.3,3703.1,0.02699892]
[1733321710756,0.25229887,3704.2,3703.8,2.69986]
[1733321710960,0.25229887,3704.3,3703.9,2.69983]
[1733321711157,2.20105822,3704.4,3703.3,0.02699702]
[1733321711315,0.25237807,3704.3,3704.0,2.69977]
[1733321711517,2.20105822,3704.4,3704.0,2.69977]
[1733321711759,0.25240179,3704.3,3703.8,2.69992]
[1733321711959,0.25240179,3704.3,3703.0,0.8284]
[1733321712116,2.20105822,3704.4,3703.0,0.8284]
[1733321712327,0.2524078,3704.3,3703.6,2.70006]
[1733321712634,0.2524078,3704.3,3703.2,2.70036]
[1733321712635,2.20105822,3704.4,3703.7,2.7]
[1733321712837,0.25240791,3704.3,3703.0,3.52887]
[1733321713148,0.25241312,3704.2,3703.2,2.7003]
[1733321713326,0.25241312,3704.1,3703.0,0.8284]
[1733321713674,0.25244034,3704.2,3703.4,2.70019]
[1733321713961,0.8289,3704.3,3703.4,2.70019]
[1733321713962,0.25244034,3704.1,3703.4,2.70019]
[1733321714130,0.8289,3704.3,3703.2,2.70034]
[1733321714131,0.25244034,3704.0,3703.2,2.70034]
[1733321714338,6.93240487,3704.3,3703.0,0.8284]
[1733321714658,0.65639121,3704.2,3703.0,0.8284]
[1733321714862,0.25248634,3704.1,3703.1,2.70042]
[1733321715065,0.25248634,3704.0,3703.1,2.70042]
[1733321715248,0.25248634,3703.9,3703.2,2.70036]
[1733321715461,0.40390487,3704.2,3703.0,0.8284]
[1733321715462,0.25248634,3703.8,3703.5,2.70014]
[1733321715758,0.25248634,3703.8,3703.0,0.8284]
[1733321715759,0.25252148,3704.1,3703.8,2.69992]
[1733321715959,0.8289,3704.3,3703.8,2.69992]
[1733321716571,0.8289,3704.3,3703.2,0.55]
[1733321716773,0.8289,3704.3,3703.9,2.69979]
[1733321716978,0.8289,3704.3,3703.3,2.70023]
[1733321717139,2.69974,3704.1,3703.0,3.52888]
[1733321717345,0.25251098,3704.0,3703.0,2.70048]
[1733321717558,0.25251098,3704.0,3703.1,2.70042]
[1733321718026,0.25251098,3703.9,3703.1,2.70042]
[1733321718227,0.25251098,3704.0,3702.7,0.754]
[1733321718423,0.25251098,3703.9,3702.6,2.70076]
[1733321718628,0.25251098,3703.9,3701.6,2.7015]
[1733321718629,2.7003,3703.3,3702.0,0.8324]
[1733321718857,1.06596786,3703.2,3702.1,0.02700632]
[1733321719072,1.06596786,3703.2,3702.2,2.70109]
[1733321719272,1.03138178,3703.2,3702.2,2.70105]
[1733321719628,1.03138178,3703.2,3702.0,0.8324]
[1733321719826,1.18737876,3703.1,3701.8,2.70137]
[1733321720032,0.7613,3702.8,3701.8,2.70137]
[1733321720469,0.7613,3702.8,3701.8,2.70132]
[1733321721251,3.46202,3702.8,3701.7,2.70145]
[1733321721446,0.25244754,3702.7,3701.7,2.70145]
[1733321721642,0.77,3702.6,3701.4,2.70161]
[1733321721947,0.77,3702.2,3701.2,2.7018]
[1733321722146,0.77,3702.2,3701.2,2.70176]
[1733321722453,0.77,3702.2,3701.2,2.70179]
[1733321722658,0.77,3702.2,3701.3,2.70174]
[1733321722846,0.77,3702.2,3701.1,2.70189]
[1733321723042,3.821,3702.0,3700.8,2.70206]
[1733321723230,3.821,3702.0,3701.0,2.7019]
[1733321723431,3.821,3702.0,3701.1,2.70189]
[1733321723737,0.821,3702.0,3701.1,2.70189]
[1733321723940,0.821,3702.0,3701.3,2.70168]
[1733321724830,1.09929926,3702.0,3701.3,2.70168]
[1733321725335,1.09929926,3702.0,3700.7,0.57701631]
[1733321725670,1.28972047,3702.0,3701.2,2.70177]
[1733321726474,1.28972047,3702.0,3701.0,2.70195]
[1733321726827,1.28972047,3702.0,3701.0,2.70191]
[1733321727277,1.28972047,3702.0,3700.6,0.7589]
[1733321727578,1.09929926,3702.0,3701.2,0.55]
[1733321727879,0.821,3702.0,3701.5,2.7016]
[1733321728032,0.821,3702.0,3701.3,2.70174]
[1733321728233,0.821,3702.0,3700.6,0.7589]
[1733321728470,0.27697359,3702.5,3700.7,2.70218]
[1733321728471,2.70142,3701.8,3700.7,2.70218]
[1733321728670,3.45697,3701.7,3700.7,2.70218]
[1733321728875,0.7555,3701.7,3700.8,2.70209]
[1733321729333,0.7555,3701.7,3700.9,2.70203]
[1733321729684,0.7555,3701.7,3701.0,2.70192]
[1733321730175,0.7555,3701.7,3701.1,2.70188]
[1733321730679,0.8139,3701.6,3700.5,2.7023]
[1733321730860,2.70168,3701.4,3700.1,2.70261]
[1733321731061,0.8085,3701.5,3700.1,2.70261]
[1733321731279,0.8085,3701.2,3699.8,2.7028]
[1733321731570,2.7024,3700.5,3699.3,0.7516]
[1733321731890,2.7024,3700.5,3699.4,2.70307]
[1733321731891,0.8164,3700.5,3699.4,2.70307]
[1733321732095,3.51877,3700.5,3699.4,2.70307]
[1733321732237,3.51877,3700.5,3698.9,2.7035]
[1733321732449,3.0,3700.4,3699.2,2.70323]
[1733321732786,3.0,3700.4,3699.3,2.70314]
[1733321732994,0.8192,3700.3,3699.3,2.70314]
[1733321733358,2.70251,3700.3,3699.0,2.70338]
[1733321733681,0.8258,3700.2,3699.1,2.7033]
[1733321733836,0.8258,3700.2,3699.2,2.70327]
[1733321734187,0.7649,3700.7,3699.5,0.7709]
[1733321734351,0.7649,3700.7,3699.6,3.05308701]
[1733321734679,0.7649,3700.7,3699.6,0.35010701]
[1733321734981,0.7649,3700.7,3699.7,2.70287]
[1733321735279,0.7649,3700.7,3699.7,0.55]
[1733321735481,0.7649,3700.7,3699.7,2.70289]
[1733321735666,0.7649,3700.7,3699.6,0.55]
[1733321736050,0.7649,3700.7,3699.2,0.55]
[1733321736246,0.7649,3700.7,3699.4,0.55]
[1733321736247,3.4671,3700.7,3699.4,0.55]
[1733321736447,3.53413,3700.6,3699.3,0.700451]
[1733321736650,3.53413,3700.6,3699.2,2.70328]
[1733321737589,2.70244,3700.4,3699.2,2.70328]
[1733321737734,3.53429,3700.3,3699.0,2.70343]
[1733321737936,0.8318,3700.2,3699.0,2.70343]
[1733321738142,0.8318,3700.0,3698.8,2.70357]
[1733321738340,3.8318,3700.0,3698.9,2.70348]
[1733321739175,3.8318,3700.0,3698.6,2.70372]
[1733321739480,0.8318,3700.0,3699.0,2.70338]
[1733321739975,3.8318,3700.0,3699.0,2.70338]
[1733321740176,0.7544,3699.9,3698.5,0.02703227]
[1733321740341,0.7544,3699.8,3698.7,2.70362]
[1733321740544,0.7544,3699.8,3698.8,2.70355]
[1733321740977,3.0,3700.0,3698.6,0.32809123]
[1733321741156,0.8331,3699.6,3698.6,2.70366]
[1733321741479,0.8331,3699.6,3698.8,2.70352]
[1733321741686,0.8331,3699.6,3698.6,2.70372]
[1733321741912,2.70307,3699.5,3698.4,2.70386]
[1733321742210,0.8331,3699.6,3698.0,0.53957106]
[1733321742412,0.8331,3699.6,3698.1,0.1489355]
[1733321742703,0.8331,3699.6,3698.7,2.70359]
[1733321743010,0.8331,3699.6,3698.4,0.55]
[1733321743167,0.8331,3699.6,3699.0,2.70341]
[1733321743369,0.8331,3699.6,3699.3,2.70321]
[1733321743570,0.8331,3699.6,3698.7,0.55]
[1733321743894,0.8331,3699.6,3699.0,2.70342]
[1733321744206,0.8331,3699.6,3699.1,2.70333]
[1733321744403,0.8331,3699.6,3699.1,2.70334]
[1733321745092,0.8331,3699.6,3699.0,0.35237299]
[1733321745272,0.8331,3699.6,3699.0,0.02703099]
[1733321745469,0.27641165,3700.0,3699.0,0.02703099]
[1733321745726,0.79,3700.1,3699.0,0.02703099]
[1733321745889,0.79,3700.1,3699.5,2.703]
[1733321746095,0.79,3700.1,3698.7,3.55]
[1733321746096,0.79,3700.1,3699.7,2.70291]
[1733321746411,0.79,3700.1,3699.3,0.02702849]
[1733321746569,0.79,3700.1,3699.6,2.70297]
[1733321747015,0.8327,3700.4,3700.0,2.70266]
[1733321747171,0.8327,3700.4,3700.2,2.70252]
[1733321747512,0.8327,3700.8,3699.7,0.57702412]
[1733321747811,0.8327,3700.8,3700.4,2.70234]
[1733321748129,0.8001,3701.2,3700.1,0.7676]
[1733321748428,0.789,3701.7,3701.0,2.70193]
[1733321748569,0.789,3701.7,3700.5,2.70229]
[1733321748773,0.789,3701.7,3700.6,0.02701778]
[1733321749093,0.25107868,3701.9,3701.5,2.70155]
[1733321749285,0.25107868,3701.9,3701.1,2.70185]
[1733321749509,0.25107868,3701.9,3701.2,0.270185]
[1733321749731,0.25107868,3701.9,3701.4,2.70167]
[1733321750332,0.25107868,3701.9,3701.5,2.7016]
[1733321750649,0.25107868,3701.9,3701.8,2.70138]
[1733321751190,0.25107868,3701.9,3701.8,3.25138]
[1733321751406,0.25107868,3701.9,3701.8,3.9325355]
[1733321752528,0.8051,3702.5,3701.8,1.2311555]
[1733321752825,0.8051,3702.5,3702.1,2.70114]
[1733321753628,0.8051,3702.5,3701.6,3.25148]
[1733321753629,0.822,3702.9,3701.6,3.25148]
[1733321753934,0.822,3702.9,3701.5,0.8316]
[1733321753935,0.822,3702.9,3702.1,0.55]
[1733321754139,0.822,3703.3,3702.9,2.70055]
[1733321754306,0.822,3703.3,3703.0,2.7005]
[1733321754743,0.822,3703.3,3702.8,2.70065]
[1733321755050,0.822,3703.3,3702.9,2.70057]
[1733321755244,0.8004,3703.8,3703.0,2.7005]
[1733321755461,0.96211029,3703.8,3703.2,2.70029]
[1733321755622,0.96211029,3703.8,3703.4,2.7002]
[1733321755623,0.8004,3703.8,3703.4,2.7002]
[1733321755823,0.52761462,3704.1,3703.5,2.70013]
[1733321756134,0.52761462,3704.1,3703.1,0.02699952]
[1733321756320,0.8141,3704.2,3702.7,3.0]
[1733321756321,0.8141,3704.2,3703.3,0.55]
[1733321756524,0.8019,3705.0,3703.5,0.55]
[1733321756719,0.8019,3705.0,3704.2,2.69963]
[1733321756920,0.8019,3705.0,3704.3,2.7264842]
[1733321757211,0.8019,3705.0,3704.3,2.69949]
[1733321757406,0.8019,3705.0,3704.3,0.02699257]
[1733321757612,0.8019,3705.0,3703.9,2.69985]
[1733321757613,0.96253092,3705.0,3704.4,2.69947]
[1733321759236,0.96253092,3705.0,3704.1,2.69965]
[1733321759440,0.96253092,3705.0,3703.8,2.69989]
[1733321759639,0.96253092,3705.0,3703.7,3.0]
[1733321759851,0.96253092,3705.0,3704.0,2.69972]
[1733321760323,1.51057979,3705.0,3702.7,3.0]
[1733321760525,0.17873744,3704.9,3703.4,3.0]
[1733321760842,0.8067,3704.8,3702.4,3.0]
[1733321761039,0.8067,3704.7,3703.0,0.53156091]
[1733321761239,0.8067,3704.7,3703.7,2.69997]
[1733321761444,0.8067,3704.7,3703.8,2.69991]
[1733321761645,0.8067,3704.7,3704.0,2.69977]
[1733321761861,0.8067,3704.7,3704.2,2.69963]
[1733321762065,0.8067,3704.7,3703.7,2.7]
[1733321762266,0.8067,3704.7,3703.8,2.69992]
[1733321762576,0.8067,3704.7,3704.1,2.69964]
[1733321763069,0.8067,3704.7,3703.7,0.55]
[1733321763254,0.8067,3704.7,3703.9,2.69985]
[1733321763841,0.8067,3704.7,3703.8,3.101662]
[1733321764537,0.8067,3704.7,3703.9,2.69983]
[1733321764736,0.8067,3704.7,3704.1,2.6997]
[1733321765052,0.8067,3704.7,3703.8,0.401762]
[1733321765252,0.8067,3704.7,3704.1,2.6997]
[1733321765797,0.8067,3704.7,3703.7,0.02699408]
[1733321765992,0.8067,3704.7,3703.7,0.55]
[1733321766143,0.53067365,3705.1,3703.7,0.55]
[1733321766144,1.30527365,3705.1,3703.8,2.69992]
[1733321766343,0.7746,3705.1,3704.2,2.6996]
[1733321766661,2.69832,3706.0,3703.9,3.57699052]
[1733321766662,0.7758,3705.5,3704.5,3.55]
[1733321766984,0.27712889,3705.9,3704.8,1.3078]
[1733321767199,0.7758,3706.7,3705.8,2.69846]
[1733321767557,0.7758,3706.7,3705.9,0.02698182]
[1733321767758,0.7758,3706.7,3705.4,2.69869]
[1733321767996,0.15867719,3706.6,3705.1,0.55]
[1733321768204,0.7758,3706.7,3705.2,0.02698181]
[1733321768375,0.7758,3706.7,3705.5,0.8251]
[1733321768562,3.47363,3706.7,3705.3,0.55]
[1733321768754,0.7758,3706.7,3705.1,1.3627]
[1733321768955,0.7961,3706.4,3705.3,2.69881]
[1733321769358,0.7961,3706.4,3704.9,0.55]
[1733321769558,2.6981,3706.3,3704.9,2.69911]